Cogmind - Beta 10.2 --- EXPLORER MODE // 2022.01.25 @ 20:06:40 Player: WagieInCagie Result: Self-destructed Performance ------------- Evolutions (2) 1000 Regions Visited (3) 600 Robots Destroyed (15) 75 Value Destroyed (442) 442 Prototype IDs (0) 0 Alien Tech Used (0) 0 Bonus (0) 0 TOTAL SCORE: 2117 Bonus ------- None Cogmind --------- Core Integrity 495/550 Matter 300/300 Energy 0/100 System Corruption 0% Temperature Cool (9) Movement Rolling (90) Location -8/Materials Parts ------- > --- POWER (1) -------- (None) > --- PROPULSION (4) --- Armored Wheel Armored Wheel Armored Wheel Flight Unit > --- UTILITY (5) ------ Visual Processing Unit Improved Signal Interpreter Improved Terrain Scanner Terrain Scan Processor ECM Suite > --- WEAPON (2) ------- Katana Katana > --- INVENTORY (4) ---- Light Ion Engine Light Nuclear Core Peak State ------------ > --- POWER ------------ (None) > --- PROPULSION ------- Armored Wheel Armored Wheel Armored Wheel Flight Unit > --- UTILITY ---------- Visual Processing Unit Improved Signal Interpreter Improved Terrain Scanner Terrain Scan Processor ECM Suite > --- WEAPON ----------- Katana Katana > --- INVENTORY -------- Light Ion Engine Assault Rifle [Rating: 22] Favorites ----------- Power Ion Engine Engine Ion Engine Propulsion Armored Wheel Leg Aluminum Leg Wheel Armored Wheel Flight Unit Flight Unit Utility Improved Terrain Scanner Device Improved Terrain Scanner Storage Medium Storage Unit Processor Visual Processing Unit Weapon Assault Rifle Ballistic Gun Assault Rifle Slashing Weapon Katana Build | -11 -10 -9 -8 ------- Run | Scr Mat Mat Mat Slots Evolved 5 | . 1 2 2 Power . | . . . . Propulsion 2 | . . 1 1 Utility 3 | . 1 1 1 Weapon . | . . . . Parts Attached 27 | 8 3 12 4 Power 2 | 1 . 1 . Engine 2 | 1 . 1 . Core . | . . . . Reactor . | . . . . Propulsion 11 | 2 . 8 1 Treads . | . . . . Leg 7 | 2 . 5 . Wheel 3 | . . 3 . Hover . | . . . . Flight 1 | . . . 1 Utility 8 | 3 1 2 2 Device 4 | 2 1 . 1 Storage 1 | 1 . . . Processor 3 | . . 2 1 Hackware . | . . . . Protection . | . . . . Artifact . | . . . . Weapon 6 | 2 2 1 1 Energy Gun . | . . . . Energy Cannon . | . . . . Ballistic Gun 4 | 2 2 . . Ballistic Cannon . | . . . . Launcher . | . . . . Special Weapon . | . . . . Impact Weapon . | . . . . Slashing Weapon 2 | . . 1 1 Piercing Weapon . | . . . . Special Melee Weapon . | . . . . Unidentified Prototypes . | . . . . Parts Lost 2 | . . 1 1 Power 1 | . . 1 . Propulsion . | . . . . Utility 1 | . . . 1 Weapon . | . . . . Highest Loss Streak 1 | . . 1 1 Average Slot Usage (%) 94 | . 96 96 90 Engine 9 | . 12 9 6 Leg 11 | . 25 7 . Wheel 13 | . . 19 25 Device 19 | . 21 20 15 Storage 6 | . 12 5 . Processor 12 | . . 14 25 Ballistic Gun 16 | . 24 15 7 Slashing Weapon 4 | . . 4 8 Naked Turns . | . . . . Heaviest Build 20 | 17 18 20 13 Greatest Support 39 | 20 20 39 36 Greatest Overweight (x) 4 | 4 . 1 . Average Overweight (x) . | . . . . Largest Inventory Capacity 8 | 8 8 8 4 Average Capacity 6 | 7 8 6 4 Most Carried 8 | 7 8 8 4 Average Carried 4 | 4 7 5 2 Final Capacity 8 | 8 8 4 4 Final Carried 7 | 7 7 3 2 Class Distribution -------------------- 42% | Hacker-Mutant 42% | Scavenger-Assassin 13% | Hacker-Skirmisher Dominant Class ---------------- Hacker-Mutant | -10/Materials Hacker-Skirmisher | -9/Materials Scavenger-Assassin | -8/Materials Resources | -11 -10 -9 -8 ----------- Run | Scr Mat Mat Mat Matter Collected 605 | 258 156 101 90 Remotely . | . . . . Salvage Created 534 | 37 226 91 180 Parts 38 | 4 16 4 14 Haulers Intercepted . | . . . . Recyclers Shooed . | . . . . Parts Field Recycled . | . . . . Retrieved Matter . | . . . . Parts Self-Destructed . | . . . . Prevented . | . . . . Kills | -11 -10 -9 -8 ------- Run | Scr Mat Mat Mat Combat Hostiles Destroyed 12 | . 5 2 5 Melee 5 | . . . 5 Guns 7 | . 5 2 . Classes Destroyed 6 | 1 3 1 1 Tunneler 2 | 2 . . . Watcher 1 | . 1 . . Swarmer 3 | . 1 . 2 Grunt 6 | . 4 1 1 Duelist 2 | . . 1 1 Sentry 1 | . . . 1 Best Kill Streak 4 | 2 4 2 3 Combat Bots Only 4 | . 4 2 3 Max Kills in Single Turn 1 | 1 1 1 1 Gunslinging . | . . . . Exploded . | . . . . Melee 1 | . . . 1 Uniques/NPCs Destroyed . | . . . . Combat | -11 -10 -9 -8 -------- Run | Scr Mat Mat Mat Damage Taken 717 | . 260 179 278 Core 163 | . 49 59 55 Absorbed by Shields . | . . . . Core Remaining (%) 88 | 100 80 85 . Volleys Fired 35 | 2 24 9 . Largest 2 | 2 2 2 . Hottest 40 | 40 40 40 . Shots Fired 70 | 4 48 18 . Gun 70 | 4 48 18 . Cannon . | . . . . Launcher . | . . . . Special . | . . . . Kinetic 70 | 4 48 18 . Thermal . | . . . . Explosive . | . . . . Electromagnetic . | . . . . Robot Hit Streak 20 | 2 16 20 . Robot Miss Streak 1 | . 1 . . Penetration Max . | . . . . Secondary Targets 3 | . 3 . . Max Gunslinging Chain 1 | . 1 . . Shots Hit Robots 75 | 2 39 17 17 Core Hits 30 | 2 17 5 6 Critical Hits 2 | 1 . . 1 Critical Kills 1 | 1 . . . Critical Parts Destroyed 1 | . . . 1 Melee Attacks 17 | . . . 17 Impact . | . . . . Slashing 17 | . . . 17 Piercing . | . . . . Sneak Attacks . | . . . . Combat Hostiles . | . . . . Follow-up Attacks . | . . . . Damage Inflicted 1067 | 32 389 184 462 Guns 605 | 32 389 184 . Cannons . | . . . . Explosions . | . . . . Melee 462 | . . . 462 Ramming . | . . . . Kinetic 605 | 32 389 184 . Thermal . | . . . . Explosive . | . . . . Electromagnetic . | . . . . Impact . | . . . . Slashing 462 | . . . 462 Piercing . | . . . . Highest Corruption . | . . . . Average Corruption . | . . . . Corruption Purged . | . . . . Overload Shots . | . . . . Overflow Damage 13 | . . . 13 Projectiles . | . . . . Explosions . | . . . . Melee 13 | . . . 13 Knockbacks . | . . . . Impact . | . . . . Kinetic . | . . . . Secondary . | . . . . Self-Inflicted Damage . | . . . . Shots . | . . . . Rammed . | . . . . Targets Rammed . | . . . . Kicked . | . . . . Crushed . | . . . . Highest Temperature 30 | . 30 3 . Average Temperature 12 | . 13 3 . Received Heat Transfer 324 | . 213 48 63 Siege Activations . | . . . . Robots Corrupted . | . . . . Combat Hostiles . | . . . . Parts Fried . | . . . . Impact Corruptions . | . . . . Robots Melted . | . . . . Combat Hostiles . | . . . . Parts Melted . | . . . . Heat Transferred . | . . . . Parts Sabotaged . | . . . . Parts Stolen . | . . . . Parts Stripped . | . . . . Power Chain Reactions . | . . . . Missiles Intercepted . | . . . . Alert | -11 -10 -9 -8 ------- Run | Scr Mat Mat Mat Peak Influence 219 | 10 149 83 219 Initial 24 | . 4 . 24 Average 68 | 2 75 54 86 Maximum Alert Level 1 | . . . 1 Low Security (%) 96 | 100 100 100 90 Level 1 3 | . . . 9 Level 2 . | . . . . Level 3 . | . . . . Level 4 . | . . . . Level 5 . | . . . . High Security . | . . . . Max Security . | . . . . Squads Dispatched 1 | . . . 1 Investigation . | . . . . Extermination . | . . . . Reinforcement 1 | . . . 1 Assault . | . . . . Garrison . | . . . . Intercept . | . . . . Construction Impeded . | . . . . Haulers Reinforced . | . . . . Stealth | -11 -10 -9 -8 --------- Run | Scr Mat Mat Mat Distress Signals 2 | . 1 1 . Communications Jammed . | . . . . Distress Signals . | . . . . Times Spotted 25 | . 8 5 12 Peak Tracking Total 4 | . 4 2 4 Tactical Retreats 4 | . . 1 3 Traps | -11 -10 -9 -8 ------- Run | Scr Mat Mat Mat Traps Triggered 2 | . 2 . . Indirectly . | . . . . Trap Hack Attempts . | . . . . Triggered . | . . . . Disarmed . | . . . . Reprogrammed . | . . . . Reused . | . . . . Traps Extracted . | . . . . Installed . | . . . . Triggered . | . . . . Machines | -11 -10 -9 -8 ---------- Run | Scr Mat Mat Mat Machines Disabled . | . . . . Max in Single Turn . | . . . . Machines Sabotaged . | . . . . Garrisons Compromised . | . . . . Overloaded Fab Kills . | . . . . Fab Network Shutdowns . | . . . . Hacking | -11 -10 -9 -8 --------- Run | Scr Mat Mat Mat Machines Accessed 5 | . 3 2 . Terminals 3 | . 2 1 . Fabricators . | . . . . Repair Stations . | . . . . Recycling Units 2 | . 1 1 . Scanalyzers . | . . . . Garrison Access . | . . . . Total Hacks 9 | . 6 3 . Successful 7 | . 4 3 . Failed 2 | . 2 . . Catastrophic . | . . . . Database Lockouts . | . . . . Manual . | . . . . Terminals 7 | . 5 2 . Fabricators . | . . . . Repair Stations . | . . . . Recycling Units 2 | . 1 1 . Scanalyzers . | . . . . Garrison Access . | . . . . Terminal Hacks 5 | . 3 2 . Alert Level 1 | . . 1 . Transport Status 1 | . 1 . . Hauler Manifests 1 | . 1 . . Zone Layout 2 | . 1 1 . Fabricator Hacks . | . . . . Repair Station Hacks . | . . . . Recycling Unit Hacks 2 | . 1 1 . Report Inventory 1 | . . 1 . Retrieve Components 1 | . 1 . . Scanalyzer . | . . . . Garrison Access Hacks . | . . . . Unauthorized Hacks . | . . . . Terminals . | . . . . Fabricators . | . . . . Repair Stations . | . . . . Recycling Units . | . . . . Scanalyzers . | . . . . Garrison Access . | . . . . Data Cores Recovered . | . . . . Used . | . . . . Hacking Detections 1 | . 1 . . Full Trace Events . | . . . . Feedback Events . | . . . . Feedback Blocked . | . . . . Robot Schematics Acquired . | . . . . Robots Built . | . . . . Matter . | . . . . Time . | . . . . Total Robot Build Rating . | . . . . Part Schematics Acquired . | . . . . Parts Built . | . . . . Matter . | . . . . Time . | . . . . Total Part Build Rating . | . . . . Parts Repaired . | . . . . Time . | . . . . Parts Recycled . | . . . . Recycled Matter . | . . . . Retrieved Matter . | . . . . Retrieved Components . | . . . . Parts Scanalyzed . | . . . . Part Schematics Acquired . | . . . . Parts Damaged . | . . . . Bothacking | -11 -10 -9 -8 ------------ Run | Scr Mat Mat Mat Used RIF Installer . | . . . . Robots Hacked . | . . . . Non-combat . | . . . . Combat . | . . . . Robot Hacks Applied . | . . . . Relay Couplers Released . | . . . . Robots Rewired . | . . . . Allies Hacked . | . . . . Hacks Repelled . | . . . . Allies | -11 -10 -9 -8 -------- Run | Scr Mat Mat Mat Total Allies . | . . . . Largest Group . | . . . . Highest-Rated Group . | . . . . Highest-Rated Ally . | . . . . Total Orders . | . . . . Ally Attacks . | . . . . Total Damage . | . . . . Kills . | . . . . Allies Corrupted . | . . . . Allies Melted . | . . . . Intel | -11 -10 -9 -8 ------- Run | Scr Mat Mat Mat Robot Analysis Total . | . . . . Derelict Logs Recovered . | . . . . Drone Launches . | . . . . Drone Recoveries . | . . . . Exploration | -11 -10 -9 -8 ------------- Run | Scr Mat Mat Mat Turns Passed 1232 | 84 445 313 390 Spaces Moved 903 | 48 282 245 328 Core 14 | 14 . . . Treads . | . . . . Legs 367 | 34 282 51 . Wheels 522 | . . 194 328 Hover . | . . . . Flight . | . . . . Fastest Speed 50 | 50 120 90 90 Average Speed 102 | 118 120 96 90 Slowest Speed 250 | 250 120 150 90 Overloaded Moves . | . . . . Propulsion Burnouts . | . . . . Robots Hopped . | . . . . Cave-ins Triggered . | . . . . Exploration Rate (%) 28 | 4 57 30 21 Regions Visited 3 Branch Regions . Pre-discovered Areas . | . . . . Known Exits Taken 3 | 1 1 1 . Unknown Exits Taken . | . . . . Scrap Searched . | . . . . Spaces Dug . | . . . . Terrain Destroyed . | . . . . Melee . | . . . . Projectile . | . . . . AOE . | . . . . Terrain Rammed . | . . . . Walls Destroyed . | . . . . Machines Disabled . | . . . . Actions | -11 -10 -9 -8 --------- Run | Scr Mat Mat Mat Total 1119 | 71 345 306 397 Wait 100 | . 35 21 44 Move 900 | 47 281 244 328 Hop . | . . . . Pick Up 27 | 14 1 9 3 Fast Attach 2 | . 1 1 . Attach 17 | 7 2 5 3 Detach 1 | . 1 . . Swap 8 | 1 . 6 1 Drop 12 | . . 11 1 Fire 35 | 2 24 9 . Melee 17 | . . . 17 Ram . | . . . . Kick . | . . . . Crush . | . . . . Escape Stasis . | . . . . Rewire . | . . . . Trap . | . . . . Miscellaneous . | . . . . Route ------- -11/Scrapyard -10/Materials (discovered 3 exits: *Mat / *Min x2) -9/Materials -8/Materials History --------- Turn | Location | Event 11 | -11/Scrapyard | Identified exit to Materials 11 | -11/Scrapyard | Discovered exit to Materials (range 15) 85 | -11/Scrapyard | Entered Materials 85 | -10/Materials | Evolved 1 slot: Utility x1 311 | -10/Materials | Build established: Hacker-Mutant 315 | -10/Materials | Identified exit to Mines 315 | -10/Materials | Discovered exit to Mines (range 12) 397 | -10/Materials | Discovered exit to Mines (range 16) 511 | -10/Materials | Identified exit to Materials 511 | -10/Materials | Discovered exit to Materials (range 16) 530 | -10/Materials | Entered another Materials area 530 | -9/Materials | Evolved 2 slots: Propulsion x1, Utility x1 835 | -9/Materials | Identified exit to Materials 835 | -9/Materials | Discovered exit to Materials (range 10) 843 | -9/Materials | Entered another Materials area 843 | -8/Materials | Evolved 2 slots: Propulsion x1, Utility x1 997 | -8/Materials | Build established: Scavenger-Assassin 1233 | -8/Materials | Self-destructed Last Messages --------------- 01112_ K-01 Serf collects debris. 01134_ S-10 Pest destroyed. 01136_ Destroyed Flight Unit. 01141_ S-10 Pest destroyed. 01146_ Acquired Flight Unit. 01146_ R-06 Scavenger collects Lgt. Assault Rifle. 01158_ Atomic Centrifuge disabled. 01159_ Y-45 Defender destroyed. 01160_ R-06 Scavenger collects Imp. Ion Engine. 01173_ Sensor Array destroyed. 01173_ R-06 Scavenger collects Lgt. Treads. 01175_ L-31 Rogue suffers critical hit. 01175_ Destroyed Imp. Ion Engine. 01180_ Imp. Ion Engine severed. 01182_ L-31 Rogue destroyed. 01190_ Acquired Katana. 01196_ G-47 Trooper destroyed. 01198_ Acquired 30 matter. 01200_ Acquired Lgt. Nuclear Core. 01201_ Dropped Assault Rifle. Map ----- +----------------------------------------------------+ | ???????????????????????###########+#############/# | | ????????????????????? | | ????????????????????? | | ????????????????????? | | ???????????????????????####+######+######+### ## | | ????????????????????????#??? ##? # # # | | ??????????????#??????? ??????" ?#? ?# " # # | | ????????????????#?????? ? ?? ##? # "G" # + | | ?????????????????? ??? ? "" ## ? # " " # # | | ?????????????#?#?? ""???#??? ?# ? # # # | | ??????????????????? ? ? ? ? ## ?# # # | | ?????????#????############################### # | | ?????????????????## ###?### ##### # | | ??????????????###?# ####### =###?# ## | | ??????????###?##?## ####### #?#?# ## | | ???????##?????????# ####### """ ##### ## | | ???????# ##########+########### """ ##### | | ???????# # """ + ## | | ???????+ + ######+##? | | ???????# # """ #??? | | ???????# ##########+######### # """ # ?? | | ???????## ?#########!%*%! ##### # """ #? ? | | ??????????? ?### #="" =g#??## # #? ? | | ????????#?? ?### # """[!#???# # # ? | | ?????????????#?# %+%"""g%#?### ####### ? | | ??????????? ?### # @ =+ ?????? | | ??????????? ?### # [ ##### #?## ???######## | | ??????????? ??### ?########??## #?#? ??? ?? ??? | | ?????????? #?#?# ##?###?##?#?# #?## ## ??" ?""? | | ???????????????## ? ?####?#?#??## #?#???# ?""?"??? | | ??????????????#?# ? ?###??#????#? ??????#?"????"?? | | ??????????????###? ?#? #####?## ###???#? ? ?? | | ???????????????## ? ?#?? ###???#?+?#???##?? ????? | | ????????????????#? ??? ????##?? ?? ?#???? ???? | | ???????????????? ? ? ??????##? ??????#????? ? ? | | ???????????????? ? ?? ? ?#?#??# ????????????????# | | ????????????????? ? ? ?##?##?# ???????????#????# | | ??????????????? ????##??#####??????????????? ???? | | ??????????????????? ??#??#?#?????????????? | | ??????????????????????????????#??????????? | | ????????????????????? ????????????????????# ### | | ?????????????????????????????????????????????????# | | ?????????????????????????????????????????????????? | | ?????????????????????????????????????????????????? | | ???????????????????????????????????????????????? ? | | ?????????????????????????????????????????????????? | | ?????????????????????????????????????????????????? | | ?????????????????????????????????????????????????? | | ?????????????????????????????????????????????????? | | ?????????????????????????????????????????????????? | +----------------------------------------------------+ Best States ------------- Heat Dissipation 31 Energy Generation 12 Energy Capacity 265 Matter Stores 300 Matter Capacity 300 Sight Range 18 Robot Scan Range 10 Terrain Scan Range 16 Terrain Scan Density 85 ECM Strength 1 Resistance: KI 35 Resistance: TH 35 Resistance: EX 35 Resistance: EM 35 Resistance: I 35 Resistance: S 35 Resistance: P 35 Evasion (%) 42 Offensive Hacking 20 Item Schematics ----------------- None Robot Schematics ------------------ None Fabricated ------------ Nothing Alien Tech Used ----------------- None Achievements -------------- None Challenges ------------ None Game ------ Seed HypervelocityRiotClaws Manual? 0 Play Time 00:36:21 Cumulative 10.5 hours Start 2022.01.25 @ 16:49:47 End 2022.01.25 @ 20:06:40 Sessions 1 Manual Loads 0 Difficulty Explorer Special Mode None Game No. 8 Rogue 4 Adventurer 2 Explorer 2 Win Type - Total 0 Types 0/0/0/0/0/0/0/0/0 Lore% 10 Gallery% 16 Achievement% 18 Wizard Run 0 Options --------- ASCII 0 Keyboard 0 Movement Mouse Keybinds 0 Fullscreen 0 Font 16/SmallcapsGlow Map View 76x50 Tactical HUD 1 Map Filters NONE Filters NONE Steam 1 RUN: a532d2e6-94cd-4c84-9f95-c8525c68cae7